Workbook

Sheet Sheet1
A1: 招租标的清单
A2: 标的序号 | B2: 资产名称 | C2: 招租面积（㎡） | D2: 租期（年） | E2: 评估金额 （元/㎡•月） | F2: 评估报告有效期 | G2: 年租金（元) | H2: 交易保证金（报名时交纳）（元） | I2: 租赁押金（元） | J2: 租金支付方式 | K2: 用途限制 | L2: 递增率 | M2: 免租期 | N2: 是否有原承租户(如有，需填写原承租户名称，原租赁合同截止日期） | P2: 是否办理不动产权证及权证号 | Q2: 证载权利人 | R2: 招租标的是否涉及查封、担保（抵押）、占用 | S2: 招租标的涉及共有或其他权力的，是否取得相关权力人认可 | T2: 承租方性质要求 | U2: 承租方资格条件 | V2: 备注
N3: 原承租户名称 | O3: 原租赁合同截止日期
A4: 1 | B4: 花果园五里冲棚户区、危旧房、城中村改造项目V区15栋1单元2层2号 | C4: 82.9 | D4: 不高于5年 | E4: 35 | F4: 2025-12-31 | G4: =753.35*E4*12 -> 316407 | H4: =G4*0.2 -> 63281 | I4: 一个月租金 | J4: 季度支付 | K4: 业态不能为酒吧、棋牌 | L4: 无 | M4: 无 | N4: 贵州正和祥药业有限公司 | O4: 2025-11-13 | P4: 黔（2020）贵阳市不动产权第0120874号 | Q4: 贵阳南明投资（集团）有限责任公司 | R4: 有抵押 | S4: 不涉及 | T4: 法人、自然人 | U4: 无
B5: 花果园五里冲棚户区、危旧房、城中村改造项目V区15栋1单元2层3号 | C5: 82.9 | K5: 业态不能为酒吧、棋牌 | L5: 无 | M5: 无 | P5: 黔（2020）贵阳市不动产权第0120102号 | Q5: 贵阳南明投资（集团）有限责任公司 | R5: 有抵押 | S5: 不涉及 | T5: 法人、自然人 | U5: 无
B6: 花果园五里冲棚户区、危旧房、城中村改造项目V区15栋1单元2层4号 | C6: 105.33 | K6: 业态不能为酒吧、棋牌 | L6: 无 | M6: 无 | P6: 黔（2020）贵阳市不动产权第0120772号 | Q6: 贵阳南明投资（集团）有限责任公司 | R6: 有抵押 | S6: 不涉及 | T6: 法人、自然人 | U6: 无
B7: 花果园五里冲棚户区、危旧房、城中村改造项目V区15栋1单元2层5号 | C7: 131.06 | K7: 业态不能为酒吧、棋牌 | L7: 无 | M7: 无 | P7: 黔（2020）贵阳市不动产权第0120768号 | Q7: 贵阳南明投资（集团）有限责任公司 | R7: 有抵押 | S7: 不涉及 | T7: 法人、自然人 | U7: 无
B8: 花果园五里冲棚户区、危旧房、城中村改造项目V区15栋1单元2层6号 | C8: 175.58 | K8: 业态不能为酒吧、棋牌 | L8: 无 | M8: 无 | P8: 黔（2020）贵阳市不动产权第0118996号 | Q8: 贵阳南明投资（集团）有限责任公司 | R8: 有抵押 | S8: 不涉及 | T8: 法人、自然人 | U8: 无
B9: 花果园五里冲棚户区、危旧房、城中村改造项目V区15栋1单元2层7号 | C9: 175.58 | K9: 业态不能为酒吧、棋牌 | L9: 无 | M9: 无 | P9: 黔（2020）贵阳市不动产权第0120168号 | Q9: 贵阳南明投资（集团）有限责任公司 | R9: 有抵押 | S9: 不涉及 | T9: 法人、自然人 | U9: 无
A10: 2 | B10: 花果园五里冲棚户区、危旧房、城中村改造项目V区15栋1单元2层10号 | C10: 82.9 | D10: 不高于5年 | E10: 40 | F10: 2025-12-31 | G10: =165.8*E10*12 -> 79584 | H10: =G10*0.2 -> 15917 | I10: 一个月租金 | J10: 季度支付 | K10: 业态不能为酒吧、棋牌 | L10: 无 | M10: 无 | N10: 无 | O10: 无 | P10: 黔（2020）贵阳市不动产权第0120491号 | Q10: 贵阳南明投资（集团）有限责任公司 | R10: 有抵押 | S10: 不涉及 | T10: 法人、自然人 | U10: 无
B11: 花果园五里冲棚户区、危旧房、城中村改造项目V区15栋1单元2层11号 | C11: 82.9 | P11: 黔（2020）贵阳市不动产权第0120066号 | Q11: 贵阳南明投资（集团）有限责任公司 | R11: 有抵押 | S11: 不涉及 | T11: 法人、自然人 | U11: 无
A12: 3 | B12: 花果园五里冲棚户区、危旧房、城中村改造项目V区15栋1单元2层12号 | C12: 265.27 | D12: 不高于5年 | E12: 35 | F12: 2025-12-31 | G12: =C12*E12*12 -> 111413.4 | H12: =G12*0.2 -> 22283 | I12: 一个月租金 | J12: 季度支付 | K12: 业态不能为酒吧、棋牌 | L12: 无 | M12: 无 | N12: 无 | O12: 无 | P12: 黔（2020）贵阳市不动产权第0120935号 | Q12: 贵阳南明投资（集团）有限责任公司 | R12: 有抵押 | S12: 不涉及 | T12: 法人、自然人 | U12: 无
A13: 4 | B13: 花果园五里冲棚户区、危旧房、城中村改造项目V区15栋1单元3层6号 | C13: 175.58 | D13: 不高于5年 | E13: 35 | F13: 2025-12-31 | G13: =165.8*E13*12 -> 69636 | H13: =G13*0.2 -> 13927 | I13: 一个月租金 | J13: 季度支付 | K13: 业态不能为酒吧、棋牌 | L13: 无 | M13: 无 | N13: 无 | O13: 无 | P13: 黔（2020）贵阳市不动产权第0120780号 | Q13: 贵阳南明投资（集团）有限责任公司 | R13: 有抵押 | S13: 不涉及 | T13: 法人、自然人 | U13: 无
B14: 花果园五里冲棚户区、危旧房、城中村改造项目V区15栋1单元3层7号 | C14: 175.58 | P14: 黔（2020）贵阳市不动产权第0120950号 | Q14: 贵阳南明投资（集团）有限责任公司 | R14: 有抵押 | S14: 不涉及 | T14: 法人、自然人 | U14: 无
A15: 5 | B15: 花果园五里冲棚户区、危旧房、城中村改造项目V区15栋1单元3层8号 | C15: 131.06 | D15: 不高于5年 | E15: 40 | F15: 2025-12-31 | G15: =C15*E15*12 -> 62908.8 | H15: =G15*0.2 -> 12582 | I15: 一个月租金 | J15: 季度支付 | K15: 业态不能为酒吧、棋牌 | L15: 无 | M15: 无 | N15: 无 | O15: 无 | P15: 黔（2020）贵阳市不动产权第0120926号 | Q15: 贵阳南明投资（集团）有限责任公司 | R15: 有抵押 | S15: 不涉及 | T15: 法人、自然人 | U15: 无
A16: 6 | B16: 花果园五里冲棚户区、危旧房、城中村改造项目V区15栋1单元4层4号 | C16: 105.33 | D16: 不高于5年 | E16: 35 | F16: 2025-12-31 | G16: =236.39*E16*12 -> 99283.8 | H16: =G16*0.2 -> 19857 | I16: 一个月租金 | J16: 季度支付 | K16: 业态不能为酒吧、棋牌 | L16: 无 | M16: 无 | N16: 无 | O16: 无 | P16: 黔（2020）贵阳市不动产权第0119891号 | Q16: 贵阳南明投资（集团）有限责任公司 | R16: 有抵押 | S16: 不涉及 | T16: 法人、自然人 | U16: 无
B17: 花果园五里冲棚户区、危旧房、城中村改造项目V区15栋1单元4层5号 | C17: 131.06 | K17: 业态不能为酒吧、棋牌 | L17: 无 | M17: 无 | N17: 无 | O17: 无 | P17: 黔（2020）贵阳市不动产权第0119887号 | Q17: 贵阳南明投资（集团）有限责任公司 | R17: 有抵押 | S17: 不涉及 | T17: 法人、自然人 | U17: 无
A18: 7 | B18: 花果园五里冲棚户区、危旧房、城中村改造项目V区15栋1单元5层5号 | C18: 131.06 | D18: 不高于5年 | E18: 40 | F18: 2025-12-31 | G18: =C18*E18*12 -> 62908.8 | H18: =G18*0.2 -> 12582 | I18: 一个月租金 | J18: 季度支付 | K18: 业态不能为酒吧、棋牌 | L18: 无 | M18: 无 | N18: 无 | O18: 无 | P18: 黔（2020）贵阳市不动产权第0117859号 | Q18: 贵阳南明投资（集团）有限责任公司 | R18: 有抵押 | S18: 不涉及 | T18: 法人、自然人 | U18: 无
A19: 8 | B19: 花果园五里冲棚户区、危旧房、城中村改造项目V区15栋1单元5层6号 | C19: 175.58 | D19: 不高于5年 | E19: 35 | F19: 2025-12-31 | G19: =351.16*E19*12 -> 147487.2 | H19: =G19*0.2 -> 29497 | I19: 一个月租金 | J19: 季度支付 | K19: 业态不能为酒吧、棋牌 | L19: 无 | M19: 无 | N19: 无 | O19: 无 | P19: 黔（2020）贵阳市不动产权第0119691号 | Q19: 贵阳南明投资（集团）有限责任公司 | R19: 有抵押 | S19: 不涉及 | T19: 法人、自然人 | U19: 无
B20: 花果园五里冲棚户区、危旧房、城中村改造项目V区15栋1单元5层7号 | C20: 175.58 | K20: 业态不能为酒吧、棋牌 | L20: 无 | M20: 无 | N20: 无 | O20: 无 | P20: 黔（2020）贵阳市不动产权第0118987号 | Q20: 贵阳南明投资（集团）有限责任公司 | R20: 有抵押 | S20: 不涉及 | T20: 法人、自然人 | U20: 无
A21: 9 | B21: 花果园五里冲棚户区、危旧房、城中村改造项目V区15栋1单元6层4号 | C21: 105.33 | D21: 不高于5年 | E21: 35 | F21: 2025-12-31 | G21: =411.97*E21*12 -> 173027.4 | H21: =G21*0.2 -> 34605 | I21: 一个月租金 | J21: 季度支付 | K21: 业态不能为酒吧、棋牌 | L21: 无 | M21: 无 | N21: 无 | O21: 无 | P21: 黔（2020）贵阳市不动产权第0119148号 | Q21: 贵阳南明投资（集团）有限责任公司 | R21: 有抵押 | S21: 不涉及 | T21: 法人、自然人 | U21: 无
B22: 花果园五里冲棚户区、危旧房、城中村改造项目V区15栋1单元6层5号 | C22: 131.06 | K22: 业态不能为酒吧、棋牌 | L22: 无 | M22: 无 | N22: 无 | O22: 无 | P22: 黔（2020）贵阳市不动产权第0118992号 | Q22: 贵阳南明投资（集团）有限责任公司 | R22: 有抵押 | S22: 不涉及 | T22: 法人、自然人 | U22: 无
B23: 花果园五里冲棚户区、危旧房、城中村改造项目V区15栋1单元6层6号 | C23: 175.58 | K23: 业态不能为酒吧、棋牌 | L23: 无 | M23: 无 | N23: 无 | O23: 无 | P23: 黔（2020）贵阳市不动产权第0119685号 | Q23: 贵阳南明投资（集团）有限责任公司 | R23: 有抵押 | S23: 不涉及 | T23: 法人、自然人 | U23: 无
A24: 10 | B24: 花果园五里冲棚户区、危旧房、城中村改造项目V区15栋1单元6层7号 | C24: 175.58 | D24: 不高于5年 | E24: 40 | F24: 2025-12-31 | G24: =C24*E24*12 -> 84278.4 | H24: =G24*0.2 -> 16856 | I24: 一个月租金 | J24: 季度支付 | K24: 业态不能为酒吧、棋牌 | L24: 无 | M24: 无 | N24: 无 | O24: 无 | P24: 黔（2020）贵阳市不动产权第0118991号 | Q24: 贵阳南明投资（集团）有限责任公司 | R24: 有抵押 | S24: 不涉及 | T24: 法人、自然人 | U24: 无
A25: 11 | B25: 花果园五里冲棚户区、危旧房、城中村改造项目V区15栋1单元8层1号 | C25: 265.43 | D25: 不高于5年 | E25: 35 | F25: 2025-12-31 | G25: =C25*E25*12 -> 111480.6 | H25: =G25*0.2 -> 22296 | I25: 一个月租金 | J25: 季度支付 | K25: 业态不能为酒吧、棋牌 | L25: 无 | M25: 无 | N25: 无 | O25: 无 | P25: 黔（2020）贵阳市不动产权第0119752号 | Q25: 贵阳南明投资（集团）有限责任公司 | R25: 有抵押 | S25: 不涉及 | T25: 法人、自然人 | U25: 无
A26: 12 | B26: 花果园五里冲棚户区、危旧房、城中村改造项目V区15栋1单元8层2号 | C26: 82.9 | D26: 不高于5年 | E26: 40 | F26: 2025-12-31 | G26: =165.8*E26*12 -> 79584 | H26: =G26*0.2 -> 15917 | I26: 一个月租金 | J26: 季度支付 | K26: 业态不能为酒吧、棋牌 | L26: 无 | M26: 无 | N26: 无 | O26: 无 | P26: 黔（2020）贵阳市不动产权第0119610号 | Q26: 贵阳南明投资（集团）有限责任公司 | R26: 有抵押 | S26: 不涉及 | T26: 法人、自然人 | U26: 无
B27: 花果园五里冲棚户区、危旧房、城中村改造项目V区15栋1单元8层3号 | C27: 82.9 | K27: 业态不能为酒吧、棋牌 | L27: 无 | M27: 无 | N27: 无 | O27: 无 | P27: 黔（2020）贵阳市不动产权第0118816号 | Q27: 贵阳南明投资（集团）有限责任公司 | R27: 有抵押 | S27: 不涉及 | T27: 法人、自然人 | U27: 无
A28: 13 | B28: 花果园五里冲棚户区、危旧房、城中村改造项目V区15栋1单元8层8号 | C28: 131.06 | D28: 不高于5年 | E28: 35 | F28: 2025-12-31 | G28: =236.39*E28*12 -> 99283.8 | H28: =G28*0.2 -> 19857 | I28: 一个月租金 | J28: 季度支付 | K28: 业态不能为酒吧、棋牌 | L28: 无 | M28: 无 | N28: 无 | O28: 无 | P28: 黔（2020）贵阳市不动产权第0119705号 | Q28: 贵阳南明投资（集团）有限责任公司 | R28: 有抵押 | S28: 不涉及 | T28: 法人、自然人 | U28: 无
B29: 花果园五里冲棚户区、危旧房、城中村改造项目V区15栋1单元8层9号 | C29: 105.33 | K29: 业态不能为酒吧、棋牌 | L29: 无 | M29: 无 | N29: 无 | O29: 无 | P29: 黔（2020）贵阳市不动产权第0119858号 | Q29: 贵阳南明投资（集团）有限责任公司 | R29: 有抵押 | S29: 不涉及 | T29: 法人、自然人 | U29: 无
A30: 14 | B30: 花果园五里冲棚户区、危旧房、城中村改造项目V区15栋1单元8层10号 | C30: 82.9 | D30: 不高于5年 | E30: 40 | F30: 2025-12-31 | G30: =165.8*E30*12 -> 79584 | H30: =G30*0.2 -> 15917 | I30: 一个月租金 | J30: 季度支付 | K30: 业态不能为酒吧、棋牌 | L30: 无 | M30: 无 | N30: 无 | O30: 无 | P30: 黔（2020）贵阳市不动产权第0119927号 | Q30: 贵阳南明投资（集团）有限责任公司 | R30: 有抵押 | S30: 不涉及 | T30: 法人、自然人 | U30: 无
B31: 花果园五里冲棚户区、危旧房、城中村改造项目V区15栋1单元8层11号 | C31: 82.9 | K31: 业态不能为酒吧、棋牌 | L31: 无 | M31: 无 | N31: 无 | O31: 无 | P31: 黔（2020）贵阳市不动产权第0119112号 | Q31: 贵阳南明投资（集团）有限责任公司 | R31: 有抵押 | S31: 不涉及 | T31: 法人、自然人 | U31: 无
A32: 15 | B32: 花果园五里冲棚户区、危旧房、城中村改造项目V区15栋1单元8层12号 | C32: 265.43 | D32: 不高于5年 | E32: 35 | F32: 2025-12-31 | G32: =581.89*E32*12 -> 244393.8 | H32: =G32*0.2 -> 48879 | I32: 一个月租金 | J32: 季度支付 | K32: 业态不能为酒吧、棋牌 | L32: 无 | M32: 无 | N32: 无 | O32: 无 | P32: 黔（2020）贵阳市不动产权第0119717号 | Q32: 贵阳南明投资（集团）有限责任公司 | R32: 有抵押 | S32: 不涉及 | T32: 法人、自然人 | U32: 无
B33: 花果园五里冲棚户区、危旧房、城中村改造项目V区15栋1单元8层13号 | C33: 158.23 | K33: 业态不能为酒吧、棋牌 | L33: 无 | M33: 无 | N33: 无 | O33: 无 | P33: 黔（2020）贵阳市不动产权第0120921号 | Q33: 贵阳南明投资（集团）有限责任公司 | R33: 有抵押 | S33: 不涉及 | T33: 法人、自然人 | U33: 无
B34: 花果园五里冲棚户区、危旧房、城中村改造项目V区15栋1单元8层14号 | C34: 158.23 | K34: 业态不能为酒吧、棋牌 | L34: 无 | M34: 无 | N34: 无 | O34: 无 | P34: 黔（2020）贵阳市不动产权第0119704号 | Q34: 贵阳南明投资（集团）有限责任公司 | R34: 有抵押 | S34: 不涉及 | T34: 法人、自然人 | U34: 无
A35: 16 | B35: 花果园五里冲棚户区、危旧房、城中村改造项目V区15栋1单元13层6号 | C35: 175.58 | D35: 不高于5年 | E35: 35 | F35: 2025-12-31 | G35: =351.16*E35*12 -> 147487.2 | H35: =G35*0.2 -> 29497 | I35: 一个月租金 | J35: 季度支付 | K35: 业态不能为酒吧、棋牌 | L35: 无 | M35: 无 | N35: 无 | O35: 无 | P35: 黔（2020）贵阳市不动产权第0115931号 | Q35: 贵阳南明投资（集团）有限责任公司 | R35: 有抵押 | S35: 不涉及 | T35: 法人、自然人 | U35: 无
B36: 花果园五里冲棚户区、危旧房、城中村改造项目V区15栋1单元13层7号 | C36: 175.58 | K36: 业态不能为酒吧、棋牌 | L36: 无 | M36: 无 | N36: 无 | O36: 无 | P36: 黔（2020）贵阳市不动产权第0116815号 | Q36: 贵阳南明投资（集团）有限责任公司 | R36: 有抵押 | S36: 不涉及 | T36: 法人、自然人 | U36: 无
A37: 17 | B37: 花果园五里冲棚户区、危旧房、城中村改造项目V区15栋1单元13层8号 | C37: 131.06 | D37: 不高于5年 | E37: 40 | F37: 2025-12-31 | G37: =C37*E37*12 -> 62908.8 | H37: =G37*0.2 -> 12582 | I37: 一个月租金 | J37: 季度支付 | K37: 业态不能为酒吧、棋牌 | L37: 无 | M37: 无 | N37: 无 | O37: 无 | P37: 黔（2020）贵阳市不动产权第0117981号 | Q37: 贵阳南明投资（集团）有限责任公司 | R37: 有抵押 | S37: 不涉及 | T37: 法人、自然人 | U37: 无
A38: 18 | B38: 花果园五里冲棚户区、危旧房、城中村改造项目V区15栋1单元14层1号 | C38: 265.43 | D38: 不高于5年 | E38: 35 | F38: 2025-12-31 | G38: 111480.6 | H38: =G38*0.2 -> 22296 | I38: 一个月租金 | J38: 季度支付 | K38: 业态不能为酒吧、棋牌 | L38: 无 | M38: 无 | N38: 无 | O38: 无 | P38: 黔（2020）贵阳市不动产权第0117950号 | Q38: 贵阳南明投资（集团）有限责任公司 | R38: 有抵押 | S38: 不涉及 | T38: 法人、自然人 | U38: 无
A39: 19 | B39: 花果园五里冲棚户区、危旧房、城中村改造项目V区15栋1单元14层6号 | C39: 175.58 | D39: 不高于5年 | E39: 35 | F39: 2025-12-31 | G39: =351.16*E39*12 -> 147487.2 | H39: =G39*0.2 -> 29497 | I39: 一个月租金 | J39: 季度支付 | K39: 业态不能为酒吧、棋牌 | L39: 无 | M39: 无 | N39: 无 | O39: 无 | P39: 黔（2020）贵阳市不动产权第0117633号 | Q39: 贵阳南明投资（集团）有限责任公司 | R39: 有抵押 | S39: 不涉及 | T39: 法人、自然人 | U39: 无
B40: 花果园五里冲棚户区、危旧房、城中村改造项目V区15栋1单元14层7号 | C40: 175.58 | K40: 业态不能为酒吧、棋牌 | L40: 无 | M40: 无 | N40: 无 | O40: 无 | P40: 黔（2020）贵阳市不动产权第0116819号 | Q40: 贵阳南明投资（集团）有限责任公司 | R40: 有抵押 | S40: 不涉及 | T40: 法人、自然人 | U40: 无
A41: 20 | B41: 花果园五里冲棚户区、危旧房、城中村改造项目V区15栋1单元14层8号 | C41: 131.06 | D41: 不高于5年 | E41: 40 | F41: 2025-12-31 | G41: 62908.8 | H41: =G41*0.2 -> 12582 | I41: 一个月租金 | J41: 季度支付 | K41: 业态不能为酒吧、棋牌 | L41: 无 | M41: 无 | N41: 无 | O41: 无 | P41: 黔（2020）贵阳市不动产权第0118139号 | Q41: 贵阳南明投资（集团）有限责任公司 | R41: 有抵押 | S41: 不涉及 | T41: 法人、自然人 | U41: 无
A42: 21 | B42: 花果园五里冲棚户区、危旧房、城中村改造项目V区15栋1单元14层13号 | C42: 158.23 | D42: 不高于5年 | E42: 35 | F42: 2025-12-31 | G42: =351.16*E42*12 -> 147487.2 | H42: =G42*0.2 -> 29497 | I42: 一个月租金 | J42: 季度支付 | K42: 业态不能为酒吧、棋牌 | L42: 无 | M42: 无 | N42: 无 | O42: 无 | P42: 黔（2020）贵阳市不动产权第0118136号 | Q42: 贵阳南明投资（集团）有限责任公司 | R42: 有抵押 | S42: 不涉及 | T42: 法人、自然人 | U42: 无
B43: 花果园五里冲棚户区、危旧房、城中村改造项目V区15栋1单元14层14号 | C43: 158.23 | K43: 业态不能为酒吧、棋牌 | L43: 无 | M43: 无 | N43: 无 | O43: 无 | P43: 黔（2020）贵阳市不动产权第0117562号 | Q43: 贵阳南明投资（集团）有限责任公司 | R43: 有抵押 | S43: 不涉及 | T43: 法人、自然人 | U43: 无
A44: 22 | B44: 花果园五里冲棚户区、危旧房、城中村改造项目V区15栋1单元15层1号 | C44: 265.43 | D44: 不高于5年 | E44: 35 | F44: 2025-12-31 | G44: =C44*E44*12 -> 111480.6 | H44: =G44*0.2 -> 22296 | I44: 一个月租金 | J44: 季度支付 | K44: 业态不能为酒吧、棋牌 | L44: 无 | M44: 无 | N44: 无 | O44: 无 | P44: 黔（2020）贵阳市不动产权第0117563号 | Q44: 贵阳南明投资（集团）有限责任公司 | R44: 有抵押 | S44: 不涉及 | T44: 法人、自然人 | U44: 无
A45: 23 | B45: 花果园五里冲棚户区、危旧房、城中村改造项目V区15栋1单元15层6号 | C45: 175.58 | D45: 不高于5年 | E45: 35 | F45: 2025-12-31 | G45: =482.22*E45*12 -> 202532.4 | H45: =G45*0.2 -> 40506 | I45: 一个月租金 | J45: 季度支付 | K45: 业态不能为酒吧、棋牌 | L45: 无 | M45: 无 | N45: 无 | O45: 无 | P45: 黔（2020）贵阳市不动产权第0116048号 | Q45: 贵阳南明投资（集团）有限责任公司 | R45: 有抵押 | S45: 不涉及 | T45: 法人、自然人 | U45: 无
B46: 花果园五里冲棚户区、危旧房、城中村改造项目V区15栋1单元15层7号 | C46: 175.58 | K46: 业态不能为酒吧、棋牌 | L46: 无 | M46: 无 | N46: 无 | O46: 无 | P46: 黔（2020）贵阳市不动产权第0117861号 | Q46: 贵阳南明投资（集团）有限责任公司 | R46: 有抵押 | S46: 不涉及 | T46: 法人、自然人 | U46: 无
B47: 花果园五里冲棚户区、危旧房、城中村改造项目V区15栋1单元15层8号 | C47: 131.06 | K47: 业态不能为酒吧、棋牌 | L47: 无 | M47: 无 | N47: 无 | O47: 无 | P47: 黔（2020）贵阳市不动产权第0117833号 | Q47: 贵阳南明投资（集团）有限责任公司 | R47: 有抵押 | S47: 不涉及 | T47: 法人、自然人 | U47: 无
A48: 24 | B48: 花果园五里冲棚户区、危旧房、城中村改造项目V区15栋1单元15层14号 | C48: 158.23 | D48: 不高于5年 | E48: 40 | F48: 2025-12-31 | G48: =C48*E48*12 -> 75950.4 | H48: =G48*0.2 -> 15190 | I48: 一个月租金 | J48: 季度支付 | K48: 业态不能为酒吧、棋牌 | L48: 无 | M48: 无 | N48: 无 | O48: 无 | P48: 黔（2020）贵阳市不动产权第0117509号 | Q48: 贵阳南明投资（集团）有限责任公司 | R48: 有抵押 | S48: 不涉及 | T48: 法人、自然人 | U48: 无
A49: 25 | B49: 花果园五里冲棚户区、危旧房、城中村改造项目V区15栋1单元16层6号 | C49: 175.58 | D49: 不高于5年 | E49: 35 | F49: 2025-12-31 | G49: =351.16*E49*12 -> 147487.2 | H49: =G49*0.2 -> 29497 | I49: 一个月租金 | J49: 季度支付 | K49: 业态不能为酒吧、棋牌 | L49: 无 | M49: 无 | N49: 无 | O49: 无 | P49: 黔（2020）贵阳市不动产权第0116842号 | Q49: 贵阳南明投资（集团）有限责任公司 | R49: 有抵押 | S49: 不涉及 | T49: 法人、自然人 | U49: 无
B50: 花果园五里冲棚户区、危旧房、城中村改造项目V区15栋1单元16层7号 | C50: 175.58 | K50: 业态不能为酒吧、棋牌 | L50: 无 | M50: 无 | N50: 无 | O50: 无 | P50: 黔（2020）贵阳市不动产权第0116649号 | Q50: 贵阳南明投资（集团）有限责任公司 | R50: 有抵押 | S50: 不涉及 | T50: 法人、自然人 | U50: 无
A51: 26 | B51: 花果园五里冲棚户区、危旧房、城中村改造项目V区15栋1单元16层14号 | C51: 158.23 | D51: 不高于5年 | E51: 40 | F51: 2025-12-31 | G51: =C51*E51*12 -> 75950.4 | H51: =G51*0.2 -> 15190 | I51: 一个月租金 | J51: 季度支付 | K51: 业态不能为酒吧、棋牌 | L51: 无 | M51: 无 | N51: 无 | O51: 无 | P51: 黔（2020）贵阳市不动产权第0117937号 | Q51: 贵阳南明投资（集团）有限责任公司 | R51: 有抵押 | S51: 不涉及 | T51: 法人、自然人 | U51: 无
A52: 27 | B52: 花果园五里冲棚户区、危旧房、城中村改造项目V区15栋1单元17层1号 | C52: 259.77 | D52: 不高于5年 | E52: 35 | F52: 2025-12-31 | G52: =414.62*E52*12 -> 174140.4 | H52: =G52*0.2 -> 34828 | I52: 一个月租金 | J52: 季度支付 | K52: 业态不能为酒吧、棋牌 | L52: 无 | M52: 无 | N52: 无 | O52: 无 | P52: 黔（2020）贵阳市不动产权第0117907号 | Q52: 贵阳南明投资（集团）有限责任公司 | R52: 有抵押 | S52: 不涉及 | T52: 法人、自然人 | U52: 无
B53: 花果园五里冲棚户区、危旧房、城中村改造项目V区15栋1单元17层14号 | C53: 154.85 | K53: 业态不能为酒吧、棋牌 | L53: 无 | M53: 无 | N53: 无 | O53: 无 | P53: 黔（2020）贵阳市不动产权第0117380号 | Q53: 贵阳南明投资（集团）有限责任公司 | R53: 有抵押 | S53: 不涉及 | T53: 法人、自然人 | U53: 无
A54: 28 | B54: 花果园五里冲棚户区、危旧房、城中村改造项目V区15栋1单元18层13号 | C54: 162.66 | D54: 不高于5年 | E54: 35 | F54: 2025-12-31 | G54: =325.32*E54*12 -> 136634.4 | H54: =G54*0.2 -> 27327 | I54: 一个月租金 | J54: 季度支付 | K54: 业态不能为酒吧、棋牌 | L54: 无 | M54: 无 | N54: 无 | O54: 无 | P54: 黔（2020）贵阳市不动产权第0117849号 | Q54: 贵阳南明投资（集团）有限责任公司 | R54: 有抵押 | S54: 不涉及 | T54: 法人、自然人 | U54: 无
B55: 花果园五里冲棚户区、危旧房、城中村改造项目V区15栋1单元18层14号 | C55: 162.66 | K55: 业态不能为酒吧、棋牌 | L55: 无 | M55: 无 | N55: 无 | O55: 无 | P55: 黔（2020）贵阳市不动产权第0116012号 | Q55: 贵阳南明投资（集团）有限责任公司 | R55: 有抵押 | S55: 不涉及 | T55: 法人、自然人 | U55: 无
A56: 29 | B56: 花果园五里冲棚户区、危旧房、城中村改造项目V区15栋1单元23层1号 | C56: 255.43 | D56: 不高于5年 | E56: 35 | F56: 2025-12-31 | G56: =453.81*E56*12 -> 190600.2 | H56: =G56*0.2 -> 38120 | I56: 一个月租金 | J56: 季度支付 | K56: 业态不能为酒吧、棋牌 | L56: 无 | M56: 无 | N56: 无 | O56: 无 | P56: 黔（2020）贵阳市不动产权第0117543号 | Q56: 贵阳南明投资（集团）有限责任公司 | R56: 有抵押 | S56: 不涉及 | T56: 法人、自然人 | U56: 无
B57: 花果园五里冲棚户区、危旧房、城中村改造项目V区15栋1单元23层12号 | C57: 198.38 | K57: 业态不能为酒吧、棋牌 | L57: 无 | M57: 无 | N57: 无 | O57: 无 | P57: 黔（2020）贵阳市不动产权第0117790号 | Q57: 贵阳南明投资（集团）有限责任公司 | R57: 有抵押 | S57: 不涉及 | T57: 法人、自然人 | U57: 无
A58: 30 | B58: 花果园五里冲棚户区、危旧房、城中村改造项目V区15栋1单元23层10号 | C58: 255.41 | D58: 不高于5年 | E58: 35 | F58: 2025-12-31 | G58: =C58*E58*12 -> 107272.2 | H58: =G58*0.2 -> 21454 | I58: 一个月租金 | J58: 季度支付 | K58: 业态不能为酒吧、棋牌 | L58: 无 | M58: 无 | N58: 无 | O58: 无 | P58: 黔（2020）贵阳市不动产权第0118001号 | Q58: 贵阳南明投资（集团）有限责任公司 | R58: 有抵押 | S58: 不涉及 | T58: 法人、自然人 | U58: 无
A59: 31 | B59: 花果园五里冲棚户区、危旧房、城中村改造项目V区15栋1单元23层11号 | C59: 200.39 | D59: 不高于5年 | E59: 35 | F59: 2025-12-31 | G59: =C59*E59*12 -> 84163.8 | H59: =G59*0.2 -> 16833 | I59: 一个月租金 | J59: 季度支付 | K59: 业态不能为酒吧、棋牌 | L59: 无 | M59: 无 | N59: 无 | O59: 无 | P59: 黔（2020）贵阳市不动产权第0117870号 | Q59: 贵阳南明投资（集团）有限责任公司 | R59: 有抵押 | S59: 不涉及 | T59: 法人、自然人 | U59: 无
A60: 32 | B60: 花果园五里冲棚户区、危旧房、城中村改造项目V区15栋1单元24层1号 | C60: 255.43 | D60: 不高于5年 | E60: 35 | F60: 2025-12-31 | G60: =2057.28*E60*12 -> 864057.6 | H60: =G60*0.2 -> 172812 | I60: 一个月租金 | J60: 季度支付 | K60: 业态不能为酒吧、棋牌 | L60: 无 | M60: 无 | N60: 无 | O60: 无 | P60: 黔（2020）贵阳市不动产权第0117904号 | Q60: 贵阳南明投资（集团）有限责任公司 | R60: 有抵押 | S60: 不涉及 | T60: 法人、自然人 | U60: 无
B61: 花果园五里冲棚户区、危旧房、城中村改造项目V区15栋1单元24层2号 | C61: 109.23 | F61: 2025-12-31 | I61: 一个月租金 | K61: 业态不能为酒吧、棋牌 | L61: 无 | M61: 无 | N61: 无 | O61: 无 | P61: 黔（2020）贵阳市不动产权第0118909号 | Q61: 贵阳南明投资（集团）有限责任公司 | R61: 有抵押 | S61: 不涉及 | T61: 法人、自然人 | U61: 无
B62: 花果园五里冲棚户区、危旧房、城中村改造项目V区15栋1单元24层3号 | C62: 108.11 | F62: 2025-12-31 | I62: 一个月租金 | K62: 业态不能为酒吧、棋牌 | L62: 无 | M62: 无 | N62: 无 | O62: 无 | P62: 黔（2020）贵阳市不动产权第0118396号 | Q62: 贵阳南明投资（集团）有限责任公司 | R62: 有抵押 | S62: 不涉及 | T62: 法人、自然人 | U62: 无
B63: 花果园五里冲棚户区、危旧房、城中村改造项目V区15栋1单元24层4号 | C63: 200.98 | F63: 2025-12-31 | I63: 一个月租金 | K63: 业态不能为酒吧、棋牌 | L63: 无 | M63: 无 | N63: 无 | O63: 无 | P63: 黔（2020）贵阳市不动产权第0117805号 | Q63: 贵阳南明投资（集团）有限责任公司 | R63: 有抵押 | S63: 不涉及 | T63: 法人、自然人 | U63: 无
B64: 花果园五里冲棚户区、危旧房、城中村改造项目V区15栋1单元24层5号 | C64: 155.5 | F64: 2025-12-31 | I64: 一个月租金 | K64: 业态不能为酒吧、棋牌 | L64: 无 | M64: 无 | N64: 无 | O64: 无 | P64: 黔（2020）贵阳市不动产权第0118582号 | Q64: 贵阳南明投资（集团）有限责任公司 | R64: 有抵押 | S64: 不涉及 | T64: 法人、自然人 | U64: 无
B65: 花果园五里冲棚户区、危旧房、城中村改造项目V区15栋1单元24层6号 | C65: 155.5 | F65: 2025-12-31 | I65: 一个月租金 | K65: 业态不能为酒吧、棋牌 | L65: 无 | M65: 无 | N65: 无 | O65: 无 | P65: 黔（2020）贵阳市不动产权第0118133号 | Q65: 贵阳南明投资（集团）有限责任公司 | R65: 有抵押 | S65: 不涉及 | T65: 法人、自然人 | U65: 无
B66: 花果园五里冲棚户区、危旧房、城中村改造项目V区15栋1单元24层7号 | C66: 201.01 | F66: 2025-12-31 | I66: 一个月租金 | K66: 业态不能为酒吧、棋牌 | L66: 无 | M66: 无 | N66: 无 | O66: 无 | P66: 黔（2020）贵阳市不动产权第0116980号 | Q66: 贵阳南明投资（集团）有限责任公司 | R66: 有抵押 | S66: 不涉及 | T66: 法人、自然人 | U66: 无
B67: 花果园五里冲棚户区、危旧房、城中村改造项目V区15栋1单元24层8号 | C67: 108.11 | F67: 2025-12-31 | I67: 一个月租金 | K67: 业态不能为酒吧、棋牌 | L67: 无 | M67: 无 | N67: 无 | O67: 无 | P67: 黔（2020）贵阳市不动产权第0118974号 | Q67: 贵阳南明投资（集团）有限责任公司 | R67: 有抵押 | S67: 不涉及 | T67: 法人、自然人 | U67: 无
B68: 花果园五里冲棚户区、危旧房、城中村改造项目V区15栋1单元24层9号 | C68: 109.23 | F68: 2025-12-31 | I68: 一个月租金 | K68: 业态不能为酒吧、棋牌 | L68: 无 | M68: 无 | N68: 无 | O68: 无 | P68: 黔（2020）贵阳市不动产权第0118751号 | Q68: 贵阳南明投资（集团）有限责任公司 | R68: 有抵押 | S68: 不涉及 | T68: 法人、自然人 | U68: 无
B69: 花果园五里冲棚户区、危旧房、城中村改造项目V区15栋1单元24层10号 | C69: 255.41 | F69: 2025-12-31 | I69: 一个月租金 | K69: 业态不能为酒吧、棋牌 | L69: 无 | M69: 无 | N69: 无 | O69: 无 | P69: 黔（2020）贵阳市不动产权第0118971号 | Q69: 贵阳南明投资（集团）有限责任公司 | R69: 有抵押 | S69: 不涉及 | T69: 法人、自然人 | U69: 无
B70: 花果园五里冲棚户区、危旧房、城中村改造项目V区15栋1单元24层11号 | C70: 200.39 | F70: 2025-12-31 | I70: 一个月租金 | K70: 业态不能为酒吧、棋牌 | L70: 无 | M70: 无 | N70: 无 | O70: 无 | P70: 黔（2020）贵阳市不动产权第0118362号 | Q70: 贵阳南明投资（集团）有限责任公司 | R70: 有抵押 | S70: 不涉及 | T70: 法人、自然人 | U70: 无
B71: 花果园五里冲棚户区、危旧房、城中村改造项目V区15栋1单元24层12号 | C71: 198.38 | F71: 2025-12-31 | I71: 一个月租金 | K71: 业态不能为酒吧、棋牌 | L71: 无 | M71: 无 | N71: 无 | O71: 无 | P71: 黔（2020）贵阳市不动产权第0118570号 | Q71: 贵阳南明投资（集团）有限责任公司 | R71: 有抵押 | S71: 不涉及 | T71: 法人、自然人 | U71: 无
A72: 33 | B72: 花果园五里冲棚户区、危旧房、城中村改造项目V区15栋1单元25层4号 | C72: 253.73 | D72: 不高于5年 | E72: 35 | F72: 2025-12-31 | G72: =C72*E72*12 -> 106566.6 | H72: =G72*0.2 -> 21313 | I72: 一个月租金 | J72: 季度支付 | K72: 业态不能为酒吧、棋牌 | L72: 无 | M72: 无 | N72: 无 | O72: 无 | P72: 黔（2020）贵阳市不动产权第0118888号 | Q72: 贵阳南明投资（集团）有限责任公司 | R72: 有抵押 | S72: 不涉及 | T72: 法人、自然人 | U72: 无
A73: 34 | B73: 花果园五里冲棚户区、危旧房、城中村改造项目V区15栋1单元26层11号 | C73: 200.39 | D73: 不高于5年 | E73: 35 | F73: 2025-12-31 | G73: 84163.8 | H73: 16833 | I73: 一个月租金 | J73: 季度支付 | K73: 业态不能为酒吧、棋牌 | L73: 无 | M73: 无 | N73: 无 | O73: 无 | P73: 黔（2020）贵阳市不动产权第0117538号 | Q73: 贵阳南明投资（集团）有限责任公司 | R73: 有抵押 | S73: 不涉及 | T73: 法人、自然人 | U73: 无
A74: 35 | B74: 花果园五里冲棚户区、危旧房、城中村改造项目V区15栋1单元26层12号 | C74: 198.38 | D74: 不高于5年 | E74: 35 | F74: 2025-12-31 | G74: 83319.6 | H74: 16664 | I74: 一个月租金 | J74: 季度支付 | K74: 业态不能为酒吧、棋牌 | L74: 无 | M74: 无 | N74: 无 | O74: 无 | P74: 黔（2020）贵阳市不动产权第0118127号 | Q74: 贵阳南明投资（集团）有限责任公司 | R74: 有抵押 | S74: 不涉及 | T74: 法人、自然人 | U74: 无
A75: 36 | B75: 花果园五里冲棚户区、危旧房、城中村改造项目V区15栋1单元27层3号 | C75: 108.75 | D75: 不高于5年 | E75: 40 | F75: 2025-12-31 | G75: 52200 | H75: 10440 | I75: 一个月租金 | J75: 季度支付 | K75: 业态不能为酒吧、棋牌 | L75: 无 | M75: 无 | N75: 无 | O75: 无 | P75: 黔（2020）贵阳市不动产权第0118576号 | Q75: 贵阳南明投资（集团）有限责任公司 | R75: 有抵押 | S75: 不涉及 | T75: 法人、自然人 | U75: 无
A76: 37 | B76: 花果园五里冲棚户区、危旧房、城中村改造项目V区15栋1单元27层4号 | C76: 200.44 | D76: 不高于5年 | E76: 35 | F76: 2025-12-31 | G76: 84184.8 | H76: 16837 | I76: 一个月租金 | J76: 季度支付 | K76: 业态不能为酒吧、棋牌 | L76: 无 | M76: 无 | N76: 无 | O76: 无 | P76: 黔（2020）贵阳市不动产权第0118355号 | Q76: 贵阳南明投资（集团）有限责任公司 | R76: 有抵押 | S76: 不涉及 | T76: 法人、自然人 | U76: 无
A77: 38 | B77: 花果园五里冲棚户区、危旧房、城中村改造项目V区15栋1单元27层11号 | C77: 200.39 | D77: 不高于5年 | E77: 35 | F77: 2025-12-31 | G77: 84163.8 | H77: 16833 | I77: 一个月租金 | J77: 季度支付 | K77: 业态不能为酒吧、棋牌 | L77: 无 | M77: 无 | N77: 无 | O77: 无 | P77: 黔（2020）贵阳市不动产权第0118382号 | Q77: 贵阳南明投资（集团）有限责任公司 | R77: 有抵押 | S77: 不涉及 | T77: 法人、自然人 | U77: 无
A78: 39 | B78: 花果园五里冲棚户区、危旧房、城中村改造项目V区15栋1单元27层12号 | C78: 198.38 | D78: 不高于5年 | E78: 35 | F78: 2025-12-31 | G78: 83319.6 | H78: 16664 | I78: 一个月租金 | J78: 季度支付 | K78: 业态不能为酒吧、棋牌 | L78: 无 | M78: 无 | N78: 无 | O78: 无 | P78: 黔（2020）贵阳市不动产权第0119622号 | Q78: 贵阳南明投资（集团）有限责任公司 | R78: 有抵押 | S78: 不涉及 | T78: 法人、自然人 | U78: 无
A79: 40 | B79: 花果园五里冲棚户区、危旧房、城中村改造项目V区15栋1单元28层1号 | C79: 254.9 | D79: 不高于5年 | E79: 35 | F79: 2025-12-31 | G79: =673.9*E79*12 -> 283038 | H79: 56608 | I79: 一个月租金 | J79: 季度支付 | K79: 业态不能为酒吧、棋牌 | L79: 无 | M79: 无 | N79: 无 | O79: 无 | P79: 黔（2020）贵阳市不动产权第0117809号 | Q79: 贵阳南明投资（集团）有限责任公司 | R79: 有抵押 | S79: 不涉及 | T79: 法人、自然人 | U79: 无
B80: 花果园五里冲棚户区、危旧房、城中村改造项目V区15栋1单元28层2号 | C80: 109.81 | I80: 一个月租金 | K80: 业态不能为酒吧、棋牌 | L80: 无 | M80: 无 | N80: 无 | O80: 无 | P80: 黔（2020）贵阳市不动产权第0118510号 | Q80: 贵阳南明投资（集团）有限责任公司 | R80: 有抵押 | S80: 不涉及 | T80: 法人、自然人 | U80: 无
B81: 花果园五里冲棚户区、危旧房、城中村改造项目V区15栋1单元28层3号 | C81: 108.75 | I81: 一个月租金 | K81: 业态不能为酒吧、棋牌 | L81: 无 | M81: 无 | N81: 无 | O81: 无 | P81: 黔（2020）贵阳市不动产权第0117802号 | Q81: 贵阳南明投资（集团）有限责任公司 | R81: 有抵押 | S81: 不涉及 | T81: 法人、自然人 | U81: 无
B82: 花果园五里冲棚户区、危旧房、城中村改造项目V区15栋1单元28层4号 | C82: 200.44 | I82: 一个月租金 | K82: 业态不能为酒吧、棋牌 | L82: 无 | M82: 无 | N82: 无 | O82: 无 | P82: 黔（2020）贵阳市不动产权第0117903号 | Q82: 贵阳南明投资（集团）有限责任公司 | R82: 有抵押 | S82: 不涉及 | T82: 法人、自然人 | U82: 无
A83: 41 | B83: 花果园五里冲棚户区、危旧房、城中村改造项目V区15栋1单元28层11号 | C83: 200.39 | D83: 不高于5年 | E83: 35 | F83: 2025-12-31 | G83: =C83*E83*12 -> 84163.8 | H83: =G83*0.2 -> 16833 | I83: 一个月租金 | J83: 季度支付 | K83: 业态不能为酒吧、棋牌 | L83: 无 | M83: 无 | N83: 无 | O83: 无 | P83: 黔（2020）贵阳市不动产权第0118564号 | Q83: 贵阳南明投资（集团）有限责任公司 | R83: 有抵押 | S83: 不涉及 | T83: 法人、自然人 | U83: 无
A84: 42 | B84: 花果园五里冲棚户区、危旧房、城中村改造项目V区15栋1单元28层12号 | C84: 198.38 | D84: 不高于5年 | E84: 35 | F84: 2025-12-31 | G84: 83319.6 | H84: 16664 | I84: 一个月租金 | J84: 季度支付 | K84: 业态不能为酒吧、棋牌 | L84: 无 | M84: 无 | N84: 无 | O84: 无 | P84: 黔（2020）贵阳市不动产权第0116852号 | Q84: 贵阳南明投资（集团）有限责任公司 | R84: 有抵押 | S84: 不涉及 | T84: 法人、自然人 | U84: 无
A85: 43 | B85: 花果园五里冲棚户区、危旧房、城中村改造项目V区15栋1单元30层1号 | C85: 254.9 | D85: 不高于5年 | E85: 35 | F85: 2025-12-31 | G85: 107058 | H85: 21412 | I85: 一个月租金 | J85: 季度支付 | K85: 业态不能为酒吧、棋牌 | L85: 无 | M85: 无 | N85: 无 | O85: 无 | P85: 黔（2020）贵阳市不动产权第0117496号 | Q85: 贵阳南明投资（集团）有限责任公司 | R85: 有抵押 | S85: 不涉及 | T85: 法人、自然人 | U85: 无
A86: 44 | B86: 花果园五里冲棚户区、危旧房、城中村改造项目V区15栋1单元30层2号 | C86: 109.81 | D86: 不高于5年 | E86: 40 | F86: 2025-12-31 | G86: 52708.8 | H86: 10542 | I86: 一个月租金 | J86: 季度支付 | K86: 业态不能为酒吧、棋牌 | L86: 无 | M86: 无 | N86: 无 | O86: 无 | P86: 黔（2020）贵阳市不动产权第0117440号 | Q86: 贵阳南明投资（集团）有限责任公司 | R86: 有抵押 | S86: 不涉及 | T86: 法人、自然人 | U86: 无
A87: 45 | B87: 花果园五里冲棚户区、危旧房、城中村改造项目V区15栋1单元31层1号 | C87: 254.9 | D87: 不高于5年 | E87: 35 | F87: 2025-12-31 | G87: 107058 | H87: 21412 | I87: 一个月租金 | J87: 季度支付 | K87: 业态不能为酒吧、棋牌 | L87: 无 | M87: 无 | N87: 无 | O87: 无 | P87: 黔（2020）贵阳市不动产权第0119372号 | Q87: 贵阳南明投资（集团）有限责任公司 | R87: 有抵押 | S87: 不涉及 | T87: 法人、自然人 | U87: 无
A88: 46 | B88: 花果园五里冲棚户区、危旧房、城中村改造项目V区15栋1单元31层4号 | C88: 202.03 | D88: 不高于5年 | E88: 35 | F88: 2025-12-31 | G88: =C88*E88*12 -> 84852.6 | H88: 16971 | I88: 一个月租金 | J88: 季度支付 | K88: 业态不能为酒吧、棋牌 | L88: 无 | M88: 无 | N88: 无 | O88: 无 | P88: 黔（2020）贵阳市不动产权第0119639号 | Q88: 贵阳南明投资（集团）有限责任公司 | R88: 有抵押 | S88: 不涉及 | T88: 法人、自然人 | U88: 无
A89: 47 | B89: 花果园五里冲棚户区、危旧房、城中村改造项目V区15栋1单元31层6号 | C89: 156.8 | D89: 不高于5年 | E89: 35 | F89: 2025-12-31 | G89: =358.83*E89*12 -> 150708.6 | H89: 30142 | I89: 一个月租金 | J89: 季度支付 | K89: 业态不能为酒吧、棋牌 | L89: 无 | M89: 无 | N89: 无 | O89: 无 | P89: 黔（2020）贵阳市不动产权第0119924号 | Q89: 贵阳南明投资（集团）有限责任公司 | R89: 有抵押 | S89: 不涉及 | T89: 法人、自然人 | U89: 无
B90: 花果园五里冲棚户区、危旧房、城中村改造项目V区15栋1单元31层7号 | C90: 202.03 | I90: 一个月租金 | K90: 业态不能为酒吧、棋牌 | L90: 无 | M90: 无 | N90: 无 | O90: 无 | P90: 黔（2020）贵阳市不动产权第0119608号 | Q90: 贵阳南明投资（集团）有限责任公司 | R90: 有抵押 | S90: 不涉及 | T90: 法人、自然人 | U90: 无
A91: 48 | B91: 花果园五里冲棚户区、危旧房、城中村改造项目V区15栋1单元31层11号 | C91: 200.39 | D91: 不高于5年 | E91: 35 | F91: 2025-12-31 | G91: 84163.8 | H91: =G91*0.2 -> 16833 | I91: 一个月租金 | J91: 季度支付 | K91: 业态不能为酒吧、棋牌 | L91: 无 | M91: 无 | N91: 无 | O91: 无 | P91: 黔（2020）贵阳市不动产权第0119922号 | Q91: 贵阳南明投资（集团）有限责任公司 | R91: 有抵押 | S91: 不涉及 | T91: 法人、自然人 | U91: 无
A92: 49 | B92: 花果园五里冲棚户区、危旧房、城中村改造项目V区15栋1单元31层12号 | C92: 198.38 | D92: 不高于5年 | E92: 35 | F92: 2025-12-31 | G92: 83319.6 | H92: 16664 | I92: 一个月租金 | J92: 季度支付 | K92: 业态不能为酒吧、棋牌 | L92: 无 | M92: 无 | N92: 无 | O92: 无 | P92: 黔（2020）贵阳市不动产权第0119132号 | Q92: 贵阳南明投资（集团）有限责任公司 | R92: 有抵押 | S92: 不涉及 | T92: 法人、自然人 | U92: 无
A93: 50 | B93: 花果园五里冲棚户区、危旧房、城中村改造项目V区15栋1单元32层11号 | C93: 200.39 | D93: 不高于5年 | E93: 35 | F93: 2025-12-31 | G93: 84163.8 | H93: 16833 | I93: 一个月租金 | J93: 季度支付 | K93: 业态不能为酒吧、棋牌 | L93: 无 | M93: 无 | N93: 无 | O93: 无 | P93: 黔（2020）贵阳市不动产权第0119889号 | Q93: 贵阳南明投资（集团）有限责任公司 | R93: 有抵押 | S93: 不涉及 | T93: 法人、自然人 | U93: 无
A94: 51 | B94: 花果园五里冲棚户区、危旧房、城中村改造项目V区15栋1单元33层11号 | C94: 200.39 | D94: 不高于5年 | E94: 35 | F94: 2025-12-31 | G94: 84163.8 | H94: 16833 | I94: 一个月租金 | J94: 季度支付 | K94: 业态不能为酒吧、棋牌 | L94: 无 | M94: 无 | N94: 无 | O94: 无 | P94: 黔（2020）贵阳市不动产权第0118989号 | Q94: 贵阳南明投资（集团）有限责任公司 | R94: 有抵押 | S94: 不涉及 | T94: 法人、自然人 | U94: 无
A95: 52 | B95: 花果园五里冲棚户区、危旧房、城中村改造项目V区15栋1单元33层12号 | C95: 198.38 | D95: 不高于5年 | E95: 35 | F95: 2025-12-31 | G95: 83319.6 | H95: 16664 | I95: 一个月租金 | J95: 季度支付 | K95: 业态不能为酒吧、棋牌 | L95: 无 | M95: 无 | N95: 无 | O95: 无 | P95: 黔（2020）贵阳市不动产权第0118708号 | Q95: 贵阳南明投资（集团）有限责任公司 | R95: 有抵押 | S95: 不涉及 | T95: 法人、自然人 | U95: 无
A96: 53 | B96: 花果园五里冲棚户区、危旧房、城中村改造项目V区15栋1单元34层1号 | C96: 254.9 | D96: 不高于5年 | E96: 35 | F96: 2025-12-31 | G96: 107058 | H96: 21412 | I96: 一个月租金 | J96: 季度支付 | K96: 业态不能为酒吧、棋牌 | L96: 无 | M96: 无 | N96: 无 | O96: 无 | P96: 黔（2020）贵阳市不动产权第0119536号 | Q96: 贵阳南明投资（集团）有限责任公司 | R96: 有抵押 | S96: 不涉及 | T96: 法人、自然人 | U96: 无
A97: 54 | B97: 花果园五里冲棚户区、危旧房、城中村改造项目V区15栋1单元34层4号 | C97: 202.03 | D97: 不高于5年 | E97: 35 | F97: 2025-12-31 | G97: 84852.6 | H97: 16971 | I97: 一个月租金 | J97: 季度支付 | K97: 业态不能为酒吧、棋牌 | L97: 无 | M97: 无 | N97: 无 | O97: 无 | P97: 黔（2020）贵阳市不动产权第0119715号 | Q97: 贵阳南明投资（集团）有限责任公司 | R97: 有抵押 | S97: 不涉及 | T97: 法人、自然人 | U97: 无
A98: 55 | B98: 花果园五里冲棚户区、危旧房、城中村改造项目V区15栋1单元34层5号 | C98: 156.8 | D98: 不高于5年 | E98: 35 | F98: 2025-12-31 | G98: =515.63*E98*12 -> 216564.6 | H98: 43313 | I98: 一个月租金 | J98: 季度支付 | K98: 业态不能为酒吧、棋牌 | L98: 无 | M98: 无 | N98: 无 | O98: 无 | P98: 黔（2020）贵阳市不动产权第0118714号 | Q98: 贵阳南明投资（集团）有限责任公司 | R98: 有抵押 | S98: 不涉及 | T98: 法人、自然人 | U98: 无
B99: 花果园五里冲棚户区、危旧房、城中村改造项目V区15栋1单元34层6号 | C99: 156.8 | I99: 一个月租金 | K99: 业态不能为酒吧、棋牌 | L99: 无 | M99: 无 | N99: 无 | O99: 无 | P99: 黔（2020）贵阳市不动产权第0119634号 | Q99: 贵阳南明投资（集团）有限责任公司 | R99: 有抵押 | S99: 不涉及 | T99: 法人、自然人 | U99: 无
B100: 花果园五里冲棚户区、危旧房、城中村改造项目V区15栋1单元34层7号 | C100: 202.03 | I100: 一个月租金 | K100: 业态不能为酒吧、棋牌 | L100: 无 | M100: 无 | N100: 无 | O100: 无 | P100: 黔（2020）贵阳市不动产权第0118707号 | Q100: 贵阳南明投资（集团）有限责任公司 | R100: 有抵押 | S100: 不涉及 | T100: 法人、自然人 | U100: 无
A101: 56 | B101: 花果园五里冲棚户区、危旧房、城中村改造项目V区15栋1单元34层11号 | C101: 200.39 | D101: 不高于5年 | E101: 35 | F101: 2025-12-31 | G101: =C101*E101*12 -> 84163.8 | H101: =G101*0.2 -> 16833 | I101: 一个月租金 | J101: 季度支付 | K101: 业态不能为酒吧、棋牌 | L101: 无 | M101: 无 | N101: 无 | O101: 无 | P101: 黔（2020）贵阳市不动产权第0119925号 | Q101: 贵阳南明投资（集团）有限责任公司 | R101: 有抵押 | S101: 不涉及 | T101: 法人、自然人 | U101: 无
A102: 57 | B102: 花果园五里冲棚户区、危旧房、城中村改造项目V区15栋1单元34层12号 | C102: 198.38 | D102: 不高于5年 | E102: 35 | F102: 2025-12-31 | G102: 83319.6 | H102: 16664 | I102: 一个月租金 | J102: 季度支付 | K102: 业态不能为酒吧、棋牌 | L102: 无 | M102: 无 | N102: 无 | O102: 无 | P102: 黔（2020）贵阳市不动产权第0119703号 | Q102: 贵阳南明投资（集团）有限责任公司 | R102: 有抵押 | S102: 不涉及 | T102: 法人、自然人 | U102: 无
A103: 58 | B103: 花果园五里冲棚户区、危旧房、城中村改造项目V区15栋1单元35层1号 | C103: 254.9 | D103: 不高于5年 | E103: 35 | F103: 2025-12-31 | G103: 107058 | H103: 21412 | I103: 一个月租金 | J103: 季度支付 | K103: 业态不能为酒吧、棋牌 | L103: 无 | M103: 无 | N103: 无 | O103: 无 | P103: 黔（2020）贵阳市不动产权第0118913号 | Q103: 贵阳南明投资（集团）有限责任公司 | R103: 有抵押 | S103: 不涉及 | T103: 法人、自然人 | U103: 无
A104: 59 | B104: 花果园五里冲棚户区、危旧房、城中村改造项目V区15栋1单元35层12号 | C104: 198.38 | D104: 不高于5年 | E104: 35 | F104: 2025-12-31 | G104: 83319.6 | H104: 16664 | I104: 一个月租金 | J104: 季度支付 | K104: 业态不能为酒吧、棋牌 | L104: 无 | M104: 无 | N104: 无 | O104: 无 | P104: 黔（2020）贵阳市不动产权第0117839号 | Q104: 贵阳南明投资（集团）有限责任公司 | R104: 有抵押 | S104: 不涉及 | T104: 法人、自然人 | U104: 无
A105: 60 | B105: 花果园五里冲棚户区、危旧房、城中村改造项目V区15栋1单元36层6号 | C105: 150 | D105: 不高于5年 | E105: 40 | F105: 2025-12-31 | G105: 72000 | H105: 14400 | I105: 一个月租金 | J105: 季度支付 | K105: 业态不能为酒吧、棋牌 | L105: 无 | M105: 无 | N105: 无 | O105: 无 | P105: 黔（2020）贵阳市不动产权第0119105号 | Q105: 贵阳南明投资（集团）有限责任公司 | R105: 有抵押 | S105: 不涉及 | T105: 法人、自然人 | U105: 无
A106: 61 | B106: 花果园五里冲棚户区、危旧房、城中村改造项目V区15栋1单元36层7号 | C106: 193.5 | D106: 不高于5年 | E106: 35 | F106: 2025-12-31 | G106: 81270 | H106: 16254 | I106: 一个月租金 | J106: 季度支付 | K106: 业态不能为酒吧、棋牌 | L106: 无 | M106: 无 | N106: 无 | O106: 无 | P106: 黔（2020）贵阳市不动产权第0119629号 | Q106: 贵阳南明投资（集团）有限责任公司 | R106: 有抵押 | S106: 不涉及 | T106: 法人、自然人 | U106: 无
A107: 62 | B107: 花果园五里冲棚户区、危旧房、城中村改造项目V区15栋1单元40层1号 | C107: 246.64 | D107: 不高于5年 | E107: 45 | F107: 2025-12-31 | G107: =1895.77*E107*12 -> 1023715.8 | H107: 204743 | I107: 一个月租金 | J107: 季度支付 | K107: 业态不能为酒吧、棋牌 | L107: 无 | M107: 无 | N107: 无 | O107: 无 | P107: 黔（2020）贵阳市不动产权第0118151号 | Q107: 贵阳南明投资（集团）有限责任公司 | R107: 有抵押 | S107: 不涉及 | T107: 法人、自然人 | U107: 无
B108: 花果园五里冲棚户区、危旧房、城中村改造项目V区15栋1单元40层2号 | C108: 166.06 | I108: 一个月租金 | K108: 业态不能为酒吧、棋牌 | L108: 无 | M108: 无 | N108: 无 | O108: 无 | P108: 黔（2020）贵阳市不动产权第0117952号 | Q108: 贵阳南明投资（集团）有限责任公司 | R108: 有抵押 | S108: 不涉及 | T108: 法人、自然人 | U108: 无
B109: 花果园五里冲棚户区、危旧房、城中村改造项目V区15栋1单元40层3号 | C109: 247.34 | I109: 一个月租金 | K109: 业态不能为酒吧、棋牌 | L109: 无 | M109: 无 | N109: 无 | O109: 无 | P109: 黔（2020）贵阳市不动产权第0117971号 | Q109: 贵阳南明投资（集团）有限责任公司 | R109: 有抵押 | S109: 不涉及 | T109: 法人、自然人 | U109: 无
B110: 花果园五里冲棚户区、危旧房、城中村改造项目V区15栋1单元40层5号 | C110: 193.57 | I110: 一个月租金 | K110: 业态不能为酒吧、棋牌 | L110: 无 | M110: 无 | N110: 无 | O110: 无 | P110: 黔（2020）贵阳市不动产权第0117993号 | Q110: 贵阳南明投资（集团）有限责任公司 | R110: 有抵押 | S110: 不涉及 | T110: 法人、自然人 | U110: 无
B111: 花果园五里冲棚户区、危旧房、城中村改造项目V区15栋1单元40层6号 | C111: 246.42 | I111: 一个月租金 | K111: 业态不能为酒吧、棋牌 | L111: 无 | M111: 无 | N111: 无 | O111: 无 | P111: 黔（2020）贵阳市不动产权第0116778号 | Q111: 贵阳南明投资（集团）有限责任公司 | R111: 有抵押 | S111: 不涉及 | T111: 法人、自然人 | U111: 无
B112: 花果园五里冲棚户区、危旧房、城中村改造项目V区15栋1单元40层7号 | C112: 166.06 | I112: 一个月租金 | K112: 业态不能为酒吧、棋牌 | L112: 无 | M112: 无 | N112: 无 | O112: 无 | P112: 黔（2020）贵阳市不动产权第0116014号 | Q112: 贵阳南明投资（集团）有限责任公司 | R112: 有抵押 | S112: 不涉及 | T112: 法人、自然人 | U112: 无
B113: 花果园五里冲棚户区、危旧房、城中村改造项目V区15栋1单元40层8号 | C113: 245.72 | I113: 一个月租金 | K113: 业态不能为酒吧、棋牌 | L113: 无 | M113: 无 | N113: 无 | O113: 无 | P113: 黔（2020）贵阳市不动产权第0116802号 | Q113: 贵阳南明投资（集团）有限责任公司 | R113: 有抵押 | S113: 不涉及 | T113: 法人、自然人 | U113: 无
B114: 花果园五里冲棚户区、危旧房、城中村改造项目V区15栋1单元40层9号 | C114: 192.94 | I114: 一个月租金 | K114: 业态不能为酒吧、棋牌 | L114: 无 | M114: 无 | N114: 无 | O114: 无 | P114: 黔（2020）贵阳市不动产权第0117667号 | Q114: 贵阳南明投资（集团）有限责任公司 | R114: 有抵押 | S114: 不涉及 | T114: 法人、自然人 | U114: 无
B115: 花果园五里冲棚户区、危旧房、城中村改造项目V区15栋1单元40层10号 | C115: 191.02 | I115: 一个月租金 | K115: 业态不能为酒吧、棋牌 | L115: 无 | M115: 无 | N115: 无 | O115: 无 | P115: 黔（2020）贵阳市不动产权第0117409号 | Q115: 贵阳南明投资（集团）有限责任公司 | R115: 有抵押 | S115: 不涉及 | T115: 法人、自然人 | U115: 无
A116: 63 | B116: 花果园五里冲棚户区、危旧房、城中村改造项目V区15栋1单元41层5号 | C116: 179 | D116: 不高于5年 | E116: 45 | F116: 2025-12-31 | G116: =C116*E116*12 -> 96660 | H116: =G116*0.2 -> 19332 | I116: 一个月租金 | J116: 季度支付 | K116: 业态不能为酒吧、棋牌 | L116: 无 | M116: 无 | N116: 无 | O116: 无 | P116: 黔（2020）贵阳市不动产权第0115772号 | Q116: 贵阳南明投资（集团）有限责任公司 | R116: 有抵押 | S116: 不涉及 | T116: 法人、自然人 | U116: 无
A117: 64 | B117: 花果园五里冲棚户区、危旧房、城中村改造项目V区15栋1单元41层6号 | C117: 246.42 | D117: 不高于5年 | E117: 45 | F117: 2025-12-31 | G117: =355*E117*12 -> 191700 | H117: =G117*0.2 -> 38340 | I117: 一个月租金 | J117: 季度支付 | K117: 业态不能为酒吧、棋牌 | L117: 无 | M117: 无 | N117: 无 | O117: 无 | P117: 黔（2020）贵阳市不动产权第0116589号 | Q117: 贵阳南明投资（集团）有限责任公司 | R117: 有抵押 | S117: 不涉及 | T117: 法人、自然人 | U117: 无
B118: 花果园五里冲棚户区、危旧房、城中村改造项目V区15栋1单元41层7号 | C118: 108.58 | K118: 业态不能为酒吧、棋牌 | L118: 无 | M118: 无 | N118: 无 | O118: 无 | P118: 黔（2020）贵阳市不动产权第0117484号 | Q118: 贵阳南明投资（集团）有限责任公司 | R118: 有抵押 | S118: 不涉及 | T118: 法人、自然人 | U118: 无
A119: 65 | B119: 花果园五里冲棚户区、危旧房、城中村改造项目V区15栋1单元41层8号 | C119: 209 | D119: 不高于5年 | E119: 45 | F119: 2025-12-31 | G119: =C119*E119*12 -> 112860 | H119: =G119*0.2 -> 22572 | I119: 一个月租金 | J119: 季度支付 | K119: 业态不能为酒吧、棋牌 | L119: 无 | M119: 无 | N119: 无 | O119: 无 | P119: 黔（2020）贵阳市不动产权第0118457号 | Q119: 贵阳南明投资（集团）有限责任公司 | R119: 有抵押 | S119: 不涉及 | T119: 法人、自然人 | U119: 无
A120: 66 | B120: 花果园五里冲棚户区、危旧房、城中村改造项目V区15栋1单元42层1号 | C120: 246.64 | D120: 不高于5年 | E120: 45 | F120: 2025-12-31 | G120: =1895.77*E120*12 -> 1023715.8 | H120: =G120*0.2 -> 204743 | I120: 一个月租金 | J120: 季度支付 | K120: 业态不能为酒吧、棋牌 | L120: 无 | M120: 无 | N120: 无 | O120: 无 | P120: 黔（2020）贵阳市不动产权第0118311号 | Q120: 贵阳南明投资（集团）有限责任公司 | R120: 有抵押 | S120: 不涉及 | T120: 法人、自然人 | U120: 无
B121: 花果园五里冲棚户区、危旧房、城中村改造项目V区15栋1单元42层2号 | C121: 166.06 | I121: 一个月租金 | K121: 业态不能为酒吧、棋牌 | L121: 无 | M121: 无 | N121: 无 | O121: 无 | P121: 黔（2020）贵阳市不动产权第0117009号 | Q121: 贵阳南明投资（集团）有限责任公司 | R121: 有抵押 | S121: 不涉及 | T121: 法人、自然人 | U121: 无
B122: 花果园五里冲棚户区、危旧房、城中村改造项目V区15栋1单元42层3号 | C122: 247.34 | I122: 一个月租金 | K122: 业态不能为酒吧、棋牌 | L122: 无 | M122: 无 | N122: 无 | O122: 无 | P122: 黔（2020）贵阳市不动产权第0117795号 | Q122: 贵阳南明投资（集团）有限责任公司 | R122: 有抵押 | S122: 不涉及 | T122: 法人、自然人 | U122: 无
B123: 花果园五里冲棚户区、危旧房、城中村改造项目V区15栋1单元42层5号 | C123: 193.57 | I123: 一个月租金 | K123: 业态不能为酒吧、棋牌 | L123: 无 | M123: 无 | N123: 无 | O123: 无 | P123: 黔（2020）贵阳市不动产权第0116174号 | Q123: 贵阳南明投资（集团）有限责任公司 | R123: 有抵押 | S123: 不涉及 | T123: 法人、自然人 | U123: 无
B124: 花果园五里冲棚户区、危旧房、城中村改造项目V区15栋1单元42层6号 | C124: 246.42 | I124: 一个月租金 | K124: 业态不能为酒吧、棋牌 | L124: 无 | M124: 无 | N124: 无 | O124: 无 | P124: 黔（2020）贵阳市不动产权第0118627号 | Q124: 贵阳南明投资（集团）有限责任公司 | R124: 有抵押 | S124: 不涉及 | T124: 法人、自然人 | U124: 无
B125: 花果园五里冲棚户区、危旧房、城中村改造项目V区15栋1单元42层7号 | C125: 166.06 | I125: 一个月租金 | K125: 业态不能为酒吧、棋牌 | L125: 无 | M125: 无 | N125: 无 | O125: 无 | P125: 黔（2020）贵阳市不动产权第0120931号 | Q125: 贵阳南明投资（集团）有限责任公司 | R125: 有抵押 | S125: 不涉及 | T125: 法人、自然人 | U125: 无
B126: 花果园五里冲棚户区、危旧房、城中村改造项目V区15栋1单元42层8号 | C126: 245.72 | I126: 一个月租金 | K126: 业态不能为酒吧、棋牌 | L126: 无 | M126: 无 | N126: 无 | O126: 无 | P126: 黔（2020）贵阳市不动产权第0118361号 | Q126: 贵阳南明投资（集团）有限责任公司 | R126: 有抵押 | S126: 不涉及 | T126: 法人、自然人 | U126: 无
B127: 花果园五里冲棚户区、危旧房、城中村改造项目V区15栋1单元42层9号 | C127: 192.94 | I127: 一个月租金 | K127: 业态不能为酒吧、棋牌 | L127: 无 | M127: 无 | N127: 无 | O127: 无 | P127: 黔（2020）贵阳市不动产权第0118607号 | Q127: 贵阳南明投资（集团）有限责任公司 | R127: 有抵押 | S127: 不涉及 | T127: 法人、自然人 | U127: 无
B128: 花果园五里冲棚户区、危旧房、城中村改造项目V区15栋1单元42层10号 | C128: 191.02 | I128: 一个月租金 | K128: 业态不能为酒吧、棋牌 | L128: 无 | M128: 无 | N128: 无 | O128: 无 | P128: 黔（2020）贵阳市不动产权第0118567号 | Q128: 贵阳南明投资（集团）有限责任公司 | R128: 有抵押 | S128: 不涉及 | T128: 法人、自然人 | U128: 无
A129: 67 | B129: 花果园五里冲棚户区、危旧房、城中村改造项目V区15栋1单元43层3号 | C129: 247.34 | D129: 不高于5年 | E129: 45 | F129: 2025-12-31 | G129: =376.57*E129*12 -> 203347.8 | H129: =G129*0.2 -> 40670 | I129: 一个月租金 | J129: 季度支付 | K129: 业态不能为酒吧、棋牌 | L129: 无 | M129: 无 | N129: 无 | O129: 无 | P129: 黔（2020）贵阳市不动产权第0118166号 | Q129: 贵阳南明投资（集团）有限责任公司 | R129: 有抵押 | S129: 不涉及 | T129: 法人、自然人 | U129: 无
B130: 花果园五里冲棚户区、危旧房、城中村改造项目V区15栋1单元43层5号 | C130: 129.23 | K130: 业态不能为酒吧、棋牌 | L130: 无 | M130: 无 | N130: 无 | O130: 无 | P130: 黔（2020）贵阳市不动产权第0118603号 | Q130: 贵阳南明投资（集团）有限责任公司 | R130: 有抵押 | S130: 不涉及 | T130: 法人、自然人 | U130: 无
A131: 68 | B131: 花果园五里冲棚户区、危旧房、城中村改造项目V区15栋1单元43层8号 | C131: 245.72 | D131: 不高于5年 | E131: 45 | F131: 2025-12-31 | G131: =403.74*E131*12 -> 218019.6 | H131: =G131*0.2 -> 43604 | I131: 一个月租金 | J131: 季度支付 | K131: 业态不能为酒吧、棋牌 | L131: 无 | M131: 无 | N131: 无 | O131: 无 | P131: 黔（2020）贵阳市不动产权第0118748号 | Q131: 贵阳南明投资（集团）有限责任公司 | R131: 有抵押 | S131: 不涉及 | T131: 法人、自然人 | U131: 无
B132: 花果园五里冲棚户区、危旧房、城中村改造项目V区15栋1单元43层9号 | C132: 158.02 | K132: 业态不能为酒吧、棋牌 | L132: 无 | M132: 无 | N132: 无 | O132: 无 | P132: 黔（2020）贵阳市不动产权第0117736号 | Q132: 贵阳南明投资（集团）有限责任公司 | R132: 有抵押 | S132: 不涉及 | T132: 法人、自然人 | U132: 无
A133: 69 | B133: 花果园五里冲棚户区、危旧房、城中村改造项目V区15栋1单元44层1号 | C133: 246.64 | D133: 不高于5年 | E133: 45 | F133: 2025-12-31 | G133: =1895.77*E133*12 -> 1023715.8 | H133: =G133*0.2 -> 204743 | I133: 一个月租金 | J133: 季度支付 | K133: 业态不能为酒吧、棋牌 | L133: 无 | M133: 无 | N133: 无 | O133: 无 | P133: 黔（2020）贵阳市不动产权第0116133号 | Q133: 贵阳南明投资（集团）有限责任公司 | R133: 有抵押 | S133: 不涉及 | T133: 法人、自然人 | U133: 无
B134: 花果园五里冲棚户区、危旧房、城中村改造项目V区15栋1单元44层2号 | C134: 166.06 | I134: 一个月租金 | K134: 业态不能为酒吧、棋牌 | L134: 无 | M134: 无 | N134: 无 | O134: 无 | P134: 黔（2020）贵阳市不动产权第0118132号 | Q134: 贵阳南明投资（集团）有限责任公司 | R134: 有抵押 | S134: 不涉及 | T134: 法人、自然人 | U134: 无
B135: 花果园五里冲棚户区、危旧房、城中村改造项目V区15栋1单元44层3号 | C135: 247.34 | I135: 一个月租金 | K135: 业态不能为酒吧、棋牌 | L135: 无 | M135: 无 | N135: 无 | O135: 无 | P135: 黔（2020）贵阳市不动产权第0116843号 | Q135: 贵阳南明投资（集团）有限责任公司 | R135: 有抵押 | S135: 不涉及 | T135: 法人、自然人 | U135: 无
B136: 花果园五里冲棚户区、危旧房、城中村改造项目V区15栋1单元44层5号 | C136: 193.57 | I136: 一个月租金 | K136: 业态不能为酒吧、棋牌 | L136: 无 | M136: 无 | N136: 无 | O136: 无 | P136: 黔（2020）贵阳市不动产权第0118420号 | Q136: 贵阳南明投资（集团）有限责任公司 | R136: 有抵押 | S136: 不涉及 | T136: 法人、自然人 | U136: 无
B137: 花果园五里冲棚户区、危旧房、城中村改造项目V区15栋1单元44层6号 | C137: 246.42 | I137: 一个月租金 | K137: 业态不能为酒吧、棋牌 | L137: 无 | M137: 无 | N137: 无 | O137: 无 | P137: 黔（2020）贵阳市不动产权第0118584号 | Q137: 贵阳南明投资（集团）有限责任公司 | R137: 有抵押 | S137: 不涉及 | T137: 法人、自然人 | U137: 无
B138: 花果园五里冲棚户区、危旧房、城中村改造项目V区15栋1单元44层7号 | C138: 166.06 | I138: 一个月租金 | K138: 业态不能为酒吧、棋牌 | L138: 无 | M138: 无 | N138: 无 | O138: 无 | P138: 黔（2020）贵阳市不动产权第0118359号 | Q138: 贵阳南明投资（集团）有限责任公司 | R138: 有抵押 | S138: 不涉及 | T138: 法人、自然人 | U138: 无
B139: 花果园五里冲棚户区、危旧房、城中村改造项目V区15栋1单元44层8号 | C139: 245.72 | I139: 一个月租金 | K139: 业态不能为酒吧、棋牌 | L139: 无 | M139: 无 | N139: 无 | O139: 无 | P139: 黔（2020）贵阳市不动产权第0116215号 | Q139: 贵阳南明投资（集团）有限责任公司 | R139: 有抵押 | S139: 不涉及 | T139: 法人、自然人 | U139: 无
B140: 花果园五里冲棚户区、危旧房、城中村改造项目V区15栋1单元44层9号 | C140: 192.94 | I140: 一个月租金 | K140: 业态不能为酒吧、棋牌 | L140: 无 | M140: 无 | N140: 无 | O140: 无 | P140: 黔（2020）贵阳市不动产权第0118957号 | Q140: 贵阳南明投资（集团）有限责任公司 | R140: 有抵押 | S140: 不涉及 | T140: 法人、自然人 | U140: 无
B141: 花果园五里冲棚户区、危旧房、城中村改造项目V区15栋1单元44层10号 | C141: 191.02 | I141: 一个月租金 | K141: 业态不能为酒吧、棋牌 | L141: 无 | M141: 无 | N141: 无 | O141: 无 | P141: 黔（2020）贵阳市不动产权第0118313号 | Q141: 贵阳南明投资（集团）有限责任公司 | R141: 有抵押 | S141: 不涉及 | T141: 法人、自然人 | U141: 无
A142: 70 | B142: 花果园五里冲棚户区、危旧房、城中村改造项目V区15栋1单元48层1号 | C142: 247.11 | D142: 不高于5年 | E142: 40 | F142: 2025-12-31 | G142: =1897.28*E142*12 -> 910694.4 | H142: =G142*0.2 -> 182139 | I142: 一个月租金 | J142: 季度支付 | K142: 业态不能为酒吧、棋牌 | L142: 无 | M142: 无 | N142: 无 | O142: 无 | P142: 黔（2020）贵阳市不动产权第0118539号 | Q142: 贵阳南明投资（集团）有限责任公司 | R142: 有抵押 | S142: 不涉及 | T142: 法人、自然人 | U142: 无
B143: 花果园五里冲棚户区、危旧房、城中村改造项目V区15栋1单元48层2号 | C143: 164.93 | I143: 一个月租金 | K143: 业态不能为酒吧、棋牌 | L143: 无 | M143: 无 | N143: 无 | O143: 无 | P143: 黔（2020）贵阳市不动产权第0117771号 | Q143: 贵阳南明投资（集团）有限责任公司 | R143: 有抵押 | S143: 不涉及 | T143: 法人、自然人 | U143: 无
B144: 花果园五里冲棚户区、危旧房、城中村改造项目V区15栋1单元48层3号 | C144: 247.82 | I144: 一个月租金 | K144: 业态不能为酒吧、棋牌 | L144: 无 | M144: 无 | N144: 无 | O144: 无 | P144: 黔（2020）贵阳市不动产权第0117697号 | Q144: 贵阳南明投资（集团）有限责任公司 | R144: 有抵押 | S144: 不涉及 | T144: 法人、自然人 | U144: 无
B145: 花果园五里冲棚户区、危旧房、城中村改造项目V区15栋1单元48层5号 | C145: 194.19 | I145: 一个月租金 | K145: 业态不能为酒吧、棋牌 | L145: 无 | M145: 无 | N145: 无 | O145: 无 | P145: 黔（2020）贵阳市不动产权第0117677号 | Q145: 贵阳南明投资（集团）有限责任公司 | R145: 有抵押 | S145: 不涉及 | T145: 法人、自然人 | U145: 无
B146: 花果园五里冲棚户区、危旧房、城中村改造项目V区15栋1单元48层6号 | C146: 246.9 | I146: 一个月租金 | K146: 业态不能为酒吧、棋牌 | L146: 无 | M146: 无 | N146: 无 | O146: 无 | P146: 黔（2020）贵阳市不动产权第0117936号 | Q146: 贵阳南明投资（集团）有限责任公司 | R146: 有抵押 | S146: 不涉及 | T146: 法人、自然人 | U146: 无
B147: 花果园五里冲棚户区、危旧房、城中村改造项目V区15栋1单元48层7号 | C147: 164.93 | I147: 一个月租金 | K147: 业态不能为酒吧、棋牌 | L147: 无 | M147: 无 | N147: 无 | O147: 无 | P147: 黔（2020）贵阳市不动产权第0118173号 | Q147: 贵阳南明投资（集团）有限责任公司 | R147: 有抵押 | S147: 不涉及 | T147: 法人、自然人 | U147: 无
B148: 花果园五里冲棚户区、危旧房、城中村改造项目V区15栋1单元48层8号 | C148: 246.19 | I148: 一个月租金 | K148: 业态不能为酒吧、棋牌 | L148: 无 | M148: 无 | N148: 无 | O148: 无 | P148: 黔（2020）贵阳市不动产权第0118169号 | Q148: 贵阳南明投资（集团）有限责任公司 | R148: 有抵押 | S148: 不涉及 | T148: 法人、自然人 | U148: 无
B149: 花果园五里冲棚户区、危旧房、城中村改造项目V区15栋1单元48层9号 | C149: 193.57 | I149: 一个月租金 | K149: 业态不能为酒吧、棋牌 | L149: 无 | M149: 无 | N149: 无 | O149: 无 | P149: 黔（2020）贵阳市不动产权第0118112号 | Q149: 贵阳南明投资（集团）有限责任公司 | R149: 有抵押 | S149: 不涉及 | T149: 法人、自然人 | U149: 无
B150: 花果园五里冲棚户区、危旧房、城中村改造项目V区15栋1单元48层10号 | C150: 191.64 | I150: 一个月租金 | K150: 业态不能为酒吧、棋牌 | L150: 无 | M150: 无 | N150: 无 | O150: 无 | P150: 黔（2020）贵阳市不动产权第0117660号 | Q150: 贵阳南明投资（集团）有限责任公司 | R150: 有抵押 | S150: 不涉及 | T150: 法人、自然人 | U150: 无
A151: 71 | B151: 花果园五里冲棚户区、危旧房、城中村改造项目V区15栋1单元49层1号 | C151: 247.11 | D151: 不高于5年 | E151: 40 | F151: 2025-12-31 | G151: =1897.28*E151*12 -> 910694.4 | H151: =G151*0.2 -> 182139 | I151: 一个月租金 | J151: 季度支付 | K151: 业态不能为酒吧、棋牌 | L151: 无 | M151: 无 | N151: 无 | O151: 无 | P151: 黔（2020）贵阳市不动产权第0120086号 | Q151: 贵阳南明投资（集团）有限责任公司 | R151: 有抵押 | S151: 不涉及 | T151: 法人、自然人 | U151: 无
B152: 花果园五里冲棚户区、危旧房、城中村改造项目V区15栋1单元49层2号 | C152: 164.93 | I152: 一个月租金 | K152: 业态不能为酒吧、棋牌 | L152: 无 | M152: 无 | N152: 无 | O152: 无 | P152: 黔（2020）贵阳市不动产权第0120107号 | Q152: 贵阳南明投资（集团）有限责任公司 | R152: 有抵押 | S152: 不涉及 | T152: 法人、自然人 | U152: 无
B153: 花果园五里冲棚户区、危旧房、城中村改造项目V区15栋1单元49层3号 | C153: 247.82 | I153: 一个月租金 | K153: 业态不能为酒吧、棋牌 | L153: 无 | M153: 无 | N153: 无 | O153: 无 | P153: 黔（2020）贵阳市不动产权第0120932号 | Q153: 贵阳南明投资（集团）有限责任公司 | R153: 有抵押 | S153: 不涉及 | T153: 法人、自然人 | U153: 无
B154: 花果园五里冲棚户区、危旧房、城中村改造项目V区15栋1单元49层5号 | C154: 194.19 | I154: 一个月租金 | K154: 业态不能为酒吧、棋牌 | L154: 无 | M154: 无 | N154: 无 | O154: 无 | P154: 黔（2020）贵阳市不动产权第0120856号 | Q154: 贵阳南明投资（集团）有限责任公司 | R154: 有抵押 | S154: 不涉及 | T154: 法人、自然人 | U154: 无
B155: 花果园五里冲棚户区、危旧房、城中村改造项目V区15栋1单元49层6号 | C155: 246.9 | I155: 一个月租金 | K155: 业态不能为酒吧、棋牌 | L155: 无 | M155: 无 | N155: 无 | O155: 无 | P155: 黔（2020）贵阳市不动产权第0120985号 | Q155: 贵阳南明投资（集团）有限责任公司 | R155: 有抵押 | S155: 不涉及 | T155: 法人、自然人 | U155: 无
B156: 花果园五里冲棚户区、危旧房、城中村改造项目V区15栋1单元49层7号 | C156: 164.93 | I156: 一个月租金 | K156: 业态不能为酒吧、棋牌 | L156: 无 | M156: 无 | N156: 无 | O156: 无 | P156: 黔（2020）贵阳市不动产权第0120508号 | Q156: 贵阳南明投资（集团）有限责任公司 | R156: 有抵押 | S156: 不涉及 | T156: 法人、自然人 | U156: 无
B157: 花果园五里冲棚户区、危旧房、城中村改造项目V区15栋1单元49层8号 | C157: 246.19 | I157: 一个月租金 | K157: 业态不能为酒吧、棋牌 | L157: 无 | M157: 无 | N157: 无 | O157: 无 | P157: 黔（2020）贵阳市不动产权第0120949号 | Q157: 贵阳南明投资（集团）有限责任公司 | R157: 有抵押 | S157: 不涉及 | T157: 法人、自然人 | U157: 无
B158: 花果园五里冲棚户区、危旧房、城中村改造项目V区15栋1单元49层9号 | C158: 193.57 | I158: 一个月租金 | K158: 业态不能为酒吧、棋牌 | L158: 无 | M158: 无 | N158: 无 | O158: 无 | P158: 黔（2020）贵阳市不动产权第0118934号 | Q158: 贵阳南明投资（集团）有限责任公司 | R158: 有抵押 | S158: 不涉及 | T158: 法人、自然人 | U158: 无
B159: 花果园五里冲棚户区、危旧房、城中村改造项目V区15栋1单元49层10号 | C159: 191.64 | I159: 一个月租金 | K159: 业态不能为酒吧、棋牌 | L159: 无 | M159: 无 | N159: 无 | O159: 无 | P159: 黔（2020）贵阳市不动产权第0120936号 | Q159: 贵阳南明投资（集团）有限责任公司 | R159: 有抵押 | S159: 不涉及 | T159: 法人、自然人 | U159: 无

Sheet Sheet2

Sheet Sheet3
